Cogmind - Beta 16 --- EXPLORER MODE // 2025.11.17 @ 08:52:29 Player: K.K.Y. Result: Destroyed by RJ-YOV(R) with Subdweller Machine Gun Performance ------------- Evolutions (0) 0 Regions Visited (2) 400 Robots Destroyed (17) 85 Value Destroyed (642) 642 Prototype IDs (0) 0 Alien Tech Used (0) 0 Bonus (0) 0 TOTAL SCORE: 1127 Bonus ------- None Cogmind --------- Core Integrity 0/250 Matter 300/300 Energy 15/100 System Corruption 0% Temperature Cool (0) Movement Core (500) Ox9 Location -10/Subcaves Parts ------- > --- POWER (1) -------- (None) > --- PROPULSION (3) --- (None) > --- UTILITY (2) ------ Large Storage Unit Targeting Computer > --- WEAPON (2) ------- Subdweller Beam Cannon > --- INVENTORY (15) --- Improved Ion Engine Spiked Treads Large Storage Unit Subdweller Optics Scrap Shield EM Pulse Gun Medium Laser Beam Rifle Subdweller Laser Light Assault Rifle Heavy Assault Rifle Subdweller Machine Gun Plasma Cutter Peak State ------------ > --- POWER ------------ Ion Engine > --- PROPULSION ------- Compact Wheel Subdweller Monowheel Subdweller Monowheel > --- UTILITY ---------- Large Storage Unit Targeting Computer > --- WEAPON ----------- Beam Rifle Autobeam > --- INVENTORY -------- Improved Ion Engine Spiked Treads Large Storage Unit Subdweller Optics Scrap Shield EM Pulse Gun Medium Laser Subdweller Laser Light Assault Rifle Heavy Assault Rifle Subdweller Machine Gun Subdweller Machine Gun Plasma Cutter [Rating: 14] Favorites ----------- Power Light Ion Engine Engine Light Ion Engine Propulsion Compact Wheel Leg Aluminum Leg Wheel Compact Wheel Utility Targeting Computer Storage Large Storage Unit Processor Targeting Computer Weapon Assault Rifle Energy Gun Autobeam Energy Cannon Subdweller Beam Cannon Ballistic Gun Assault Rifle Special Weapon Plasma Cutter Special Melee Weapon Datajack Build | -11 -10 -10 ------- Run | Yrd Mat Sub Slots Evolved 1 | . 1 . Power . | . . . Propulsion 1 | . 1 . Utility . | . . . Weapon . | . . . Parts Attached 23 | 6 5 12 Power 2 | 1 . 1 Engine 2 | 1 . 1 Core . | . . . Reactor . | . . . Propulsion 8 | 2 3 3 Treads . | . . . Leg 2 | 2 . . Wheel 6 | . 3 3 Hover . | . . . Flight . | . . . Utility 3 | 2 1 . Device . | . . . Storage 2 | 1 1 . Processor 1 | 1 . . Hackware . | . . . Protection . | . . . Artifact . | . . . Weapon 10 | 1 1 8 Energy Gun 2 | . . 2 Energy Cannon 2 | . . 2 Ballistic Gun 4 | 1 . 3 Ballistic Cannon . | . . . Launcher . | . . . Special Weapon 1 | . . 1 Impact Weapon . | . . . Slashing Weapon . | . . . Piercing Weapon . | . . . Special Melee Weapon 1 | . 1 . Unidentified Prototypes . | . . . Parts Lost 11 | . . 11 Power 2 | . . 2 Propulsion 5 | . . 5 Utility . | . . . Weapon 4 | . . 4 Highest Loss Streak 5 | . . 5 To Critical Strikes . | . . . Average Backups 9 | 1 2 11 Power . | . . . Propulsion . | . . 1 Utility 1 | . . 2 Weapon 5 | . 1 6 Tool/Special . | . . . Unused Backups 10 | . . 10 Power 1 | . . 1 Propulsion 1 | . . 1 Utility 3 | . . 3 Weapon 5 | . . 5 Tool/Special . | . . . Average Slot Usage (%) 88 | . 87 89 Engine 8 | . 12 7 Leg 1 | . 6 . Wheel 32 | . 27 34 Storage 12 | . 12 12 Processor 12 | . 12 12 Energy Gun 5 | . . 7 Energy Cannon 1 | . . 1 Ballistic Gun 10 | . 12 10 Special Melee Weapon 2 | . 3 1 Peak Build Rating 14 | 6 8 14 Average Rating 9 | 3 7 10 On Entrance 4 | . 6 8 Avg Prop Armor Cover (%) 4 | . . 4 Naked Turns . | . . . Heaviest Build 34 | 15 26 34 Greatest Support 56 | 20 48 56 Greatest Overweight (x) . | . . . Average Overweight (x) . | . . . Largest Inventory Capacity 15 | 10 15 15 Average Capacity 13 | 7 10 15 Most Carried 15 | 5 5 15 Average Carried 10 | 1 2 12 Final Capacity 15 | 10 15 15 Final Carried 14 | . 5 14 Class Distribution -------------------- 100% | Hacker-Mutant Dominant Class ---------------- Hacker-Mutant | -10/Materials Hacker-Mutant | -10/Subcaves Resources | -11 -10 -10 ----------- Run | Yrd Mat Sub Matter Collected 555 | 206 131 218 Remotely . | . . . Salvage Created 703 | . 103 600 Parts 35 | . 4 31 Haulers Intercepted 1 | . 1 . Recyclers Shooed . | . . . Parts Field Recycled . | . . . Retrieved Matter . | . . . Parts Self-Destructed . | . . . Prevented . | . . . Parts Restored . | . . . Kills | -11 -10 -10 ------- Run | Yrd Mat Sub Combat Hostiles Destroyed 16 | . 1 15 Guns 10 | . . 10 Cannons 5 | . . 5 Classes Destroyed 4 | . 2 2 Hauler 1 | . 1 . Grunt 3 | . 1 2 Sentry 1 | . . 1 Subdweller 12 | . . 12 Best Kill Streak 3 | . 2 3 Combat Bots Only 3 | . 1 3 Max Kills in Single Turn 1 | . 1 1 Gunslinging . | . . . Exploded . | . . . Melee . | . . . Uniques/NPCs Destroyed . | . . . Combat | -11 -10 -10 -------- Run | Yrd Mat Sub Hostile Shots Fired 106 | . 6 100 Missed 25 | . 3 22 Hits 81 | . 3 78 Projectile 81 | . 3 78 Critical Strikes 2 | . . 2 Damage Taken 988 | . 21 967 Core 255 | . 7 248 Absorbed by Shields . | . . . Ignored by Resistances 590 | . 14 576 Core Remaining (%) 100 | 100 . . Volleys Fired 96 | . 9 87 Largest 1 | . 1 1 Hottest 80 | . 20 80 Shots Fired 113 | . 9 104 Gun 81 | . 9 72 Cannon 28 | . . 28 Launcher . | . . . Special 4 | . . 4 Kinetic 59 | . 9 50 Thermal 54 | . . 54 Explosive . | . . . Electromagnetic . | . . . Robot Hit Streak 80 | . 9 80 Robot Miss Streak 1 | . . 1 Penetration Max . | . . . Secondary Targets . | . . . Autonomous 18 | . . 18 Shots Hit Robots 92 | . 10 82 Core Hits 35 | . 2 33 Critical Kills . | . . . Critical Parts Destroyed . | . . . Critical Strikes . | . . . Melee Attacks 2 | . 1 1 Impact . | . . . Slashing . | . . . Piercing . | . . . Sneak Attacks 2 | . 1 1 Combat Hostiles . | . . . Follow-up Attacks . | . . . Damage Inflicted 1530 | . 108 1422 Guns 918 | . 108 810 Cannons 612 | . . 612 Explosions . | . . . Melee . | . . . Ramming . | . . . Kinetic 596 | . 108 488 Thermal 934 | . . 934 Explosive . | . . . Electromagnetic . | . . . Impact . | . . . Slashing . | . . . Piercing . | . . . Highest Corruption . | . . . Average Corruption . | . . . Corruption Purged . | . . . Corruption Blocked . | . . . Overload Shots . | . . . Overflow Damage . | . . . Projectiles . | . . . Explosions . | . . . Melee . | . . . Knockbacks . | . . . Impact . | . . . Kinetic . | . . . Secondary . | . . . Self-Inflicted Damage . | . . . Shots . | . . . Rammed . | . . . Targets Rammed . | . . . Kicked . | . . . Crushed . | . . . Highest Temperature 186 | . . 186 Average Temperature 52 | . . 52 Received Heat Transfer 363 | . 18 345 Siege Activations . | . . . Martial Activations . | . . . Shielding Activations . | . . . Robots Disrupted . | . . . Combat Hostiles . | . . . Robots Corrupted . | . . . Combat Hostiles . | . . . Parts Fried 2 | . 2 . Impact Corruptions . | . . . Robots Melted . | . . . Combat Hostiles . | . . . Parts Melted 5 | . . 5 Heat Transferred 1951 | . . 1951 Parts Sabotaged . | . . . Parts Stolen . | . . . Parts Stripped . | . . . Power Chain Reactions . | . . . Alert | -11 -10 -10 ------- Run | Yrd Mat Sub Maximum Alert Level . | . . . Low Security (%) 100 | 100 100 . Level 1 . | . . . Level 2 . | . . . Level 3 . | . . . Level 4 . | . . . Level 5 . | . . . High Security . | . . . Max Security . | . . . Peak Influence 60 | . 60 . Initial . | . . . Average 6 | . 7 . Influence Increases 188 | . 103 85 Destroy 0b10 Robot/C 80 | . 20 60 Destroy 0b10 Robot/NC 5 | . 5 . Destroy Leader 12 | . 2 10 Trap Triggered on 0b10 40 | . 40 . Successful Hack 21 | . 21 . Lose Combat Pursuer 30 | . 15 15 Influence Decreases 188 | . 85 103 Entered New Map 12 | . . 12 Time Decay 166 | . 85 81 Lost Part 10 | . . 10 Squads Dispatched . | . . . Investigation . | . . . Extermination . | . . . Reinforcement . | . . . Assault . | . . . Garrison . | . . . Intercept . | . . . Searches Triggered . | . . . Construction Impeded . | . . . Haulers Reinforced . | . . . Active Scanning Responses . | . . . Cargo Convoy Interrupts . | . . . Stealth | -11 -10 -10 --------- Run | Yrd Mat Sub Distress Signals . | . . . Communications Jammed . | . . . Distress Signals . | . . . Times Spotted 20 | . 3 17 Peak Tracking Total 3 | . 1 3 Tactical Retreats 2 | . 1 1 Traps | -11 -10 -10 ------- Run | Yrd Mat Sub Traps Triggered . | . . . Indirectly . | . . . Trap Hack Attempts . | . . . Triggered . | . . . Disarmed . | . . . Reprogrammed 6 | . 6 . Reused 4 | . 4 . Traps Extracted . | . . . Installed . | . . . Triggered 4 | . 4 . Machines | -11 -10 -10 ---------- Run | Yrd Mat Sub Machines Disabled . | . . . Max in Single Turn . | . . . Machines Repaired . | . . . Machines Dismantled . | . . . Machines Sabotaged . | . . . Overloaded Fab Kills . | . . . Hacking | -11 -10 -10 --------- Run | Yrd Mat Sub Machines Accessed 4 | . 3 1 Terminals 3 | . 3 . Fabricators . | . . . Repair Stations . | . . . Recycling Units . | . . . Scanalyzers . | . . . Garrison Access . | . . . Total Hacks 12 | . 9 3 Successful 11 | . 8 3 Failed 1 | . 1 . Catastrophic . | . . . Database Lockouts . | . . . Manual . | . . . Terminals 9 | . 9 . Fabricators . | . . . Repair Stations . | . . . Recycling Units . | . . . Scanalyzers . | . . . Garrison Access . | . . . Terminal Hacks 11 | . 8 3 Record 3 | . . 3 Level Access Points 1 | . 1 . Emergency Access Points 1 | . 1 . Locate Traps 1 | . 1 . Reprogram Traps 1 | . 1 . Registered Components 1 | . 1 . Zone Layout 3 | . 3 . Fabricator Hacks . | . . . Repair Station Hacks . | . . . Recycling Unit Hacks . | . . . Scanalyzer . | . . . Garrison Access Hacks . | . . . Unauthorized Hacks . | . . . Terminals . | . . . Fabricators . | . . . Repair Stations . | . . . Recycling Units . | . . . Scanalyzers . | . . . Garrison Access . | . . . Data Cores Recovered . | . . . Used . | . . . Hacking Detections 2 | . 2 . Full Trace Events . | . . . Feedback Events . | . . . Feedback Blocked . | . . . Robot Schematics Acquired . | . . . Robots Built . | . . . Authchips . | . . . Time . | . . . Total Robot Build Rating . | . . . Part Schematics Acquired . | . . . Parts Built . | . . . Authchips . | . . . Time . | . . . Total Part Build Rating . | . . . Part Studies Acquired . | . . . Parts Repaired . | . . . Time . | . . . Parts Recycled . | . . . Recycled Matter . | . . . Retrieved Matter . | . . . Retrieved Components . | . . . Parts Scanalyzed . | . . . Part Schematics Acquired . | . . . Parts Damaged . | . . . Bothacking | -11 -10 -10 ------------ Run | Yrd Mat Sub Used RIF Installer . | . . . Robots Hacked 2 | . 1 1 Non-combat 2 | . 1 1 Combat . | . . . Robot Hacks Applied 2 | . 1 1 parse_system 1 | . . 1 no_distress 1 | . 1 . Relay Couplers Released . | . . . Fabnet Peak Effective % . | . . . Robots Rewired . | . . . Allies Hacked . | . . . Hacks Repelled . | . . . Allies | -11 -10 -10 -------- Run | Yrd Mat Sub Total Allies . | . . . Largest Group . | . . . Highest-Rated Group . | . . . Highest-Rated Ally . | . . . Total Orders . | . . . Ally Attacks . | . . . Total Damage . | . . . Kills . | . . . Allies Corrupted . | . . . Allies Melted . | . . . Intel | -11 -10 -10 ------- Run | Yrd Mat Sub Active Infowar (turns) . | . . . Robot Analysis Total . | . . . Derelict Logs Recovered 1 | . . 1 Drone Launches . | . . . Drone Recoveries . | . . . Exploration | -11 -10 -10 ------------- Run | Yrd Mat Sub Turns Passed 1954 | 56 420 1478 Spaces Moved 1518 | 41 356 1121 Core 19 | 19 . . Treads . | . . . Legs 99 | 22 77 . Wheels 1400 | . 279 1121 Hover . | . . . Flight . | . . . Fastest Speed 50 | 50 100 100 Average Speed 102 | 87 104 102 Slowest Speed 120 | 120 120 106 Overloaded Moves . | . . . Propulsion Burnouts . | . . . Robots Hopped . | . . . Potential Cave-ins . | . . . Cave-ins Triggered . | . . . Exploration Rate (%) 39 | 3 44 70 Regions Visited 2 Branch Regions 1 Pre-discovered Areas 2 | . . 2 Known Exits Taken 2 | 1 1 . Unknown Exits Taken . | . . . Scrap Searched 3 | . . 3 Spaces Dug 1 | . . 1 Terrain Destroyed 2 | . . 2 Melee . | . . . Projectile 2 | . . 2 AOE . | . . . Terrain Rammed . | . . . Walls Destroyed . | . . . Machines Disabled . | . . . Actions | -11 -10 -10 --------- Run | Yrd Mat Sub Total 1815 | 61 397 1357 Wait 139 | 8 12 119 Move 1516 | 40 355 1121 Hop . | . . . Pick Up 29 | 6 10 13 Fast Attach 3 | 1 . 2 Attach 14 | 5 4 5 Detach 3 | . 2 1 Swap 7 | . 1 6 Drop 6 | 1 3 2 Fire 96 | . 9 87 Melee 2 | . 1 1 Ram . | . . . Kick . | . . . Crush . | . . . Escape Stasis . | . . . Rewire . | . . . Trap . | . . . Miscellaneous . | . . . Route ------- -11/Scrapyard -10/Materials (discovered 5 exits: *Mat x3 / *Min / *Sub) -10/Subcaves (discovered 3 exits: *Mat / *Rec / [*Scr]) History --------- Turn | Location | Event 12 | -11/Scrapyard | Identified exit to Materials 12 | -11/Scrapyard | Discovered exit to Materials (range 15) 57 | -11/Scrapyard | Entered Materials 57 | -10/Materials | Evolved 1 slot: Propulsion x1 81 | -10/Materials | Identified exit to Mines 81 | -10/Materials | Discovered exit to Mines (range 13) 181 | -10/Materials | Identified exit to Materials 181 | -10/Materials | Discovered exit to Materials (range 16) 311 | -10/Materials | Build established: Hacker-Mutant 473 | -10/Materials | Identified exit to Subcaves 473 | -10/Materials | Discovered exit to Subcaves (range 4) 477 | -10/Materials | Entered Subcaves 478 | -10/Subcaves | Approached by a straggling Scientist 625 | -10/Subcaves | Shifting Twisted Machinery released Sub. Beam Cannon 683 | -10/Subcaves | Scientist uncovered a shortcut to Scraptown 911 | -10/Subcaves | Identified exit to Recycling 911 | -10/Subcaves | Discovered exit to Recycling (range 15) 954 | -10/Subcaves | Core integrity fell below 50% 1006 | -10/Subcaves | Learned location of Storage (-9) 1158 | -10/Subcaves | A swath of the cavern ceiling suddenly collapsed 1309 | -10/Subcaves | Identified exit to Materials 1309 | -10/Subcaves | Discovered exit to Materials (range 13) 1416 | -10/Subcaves | Shifting Twisted Machinery released Flamer 1591 | -10/Subcaves | Shifting Twisted Machinery released Flamer 1594 | -10/Subcaves | Learned location of Zion (-6) 1594 | -10/Subcaves | Met a Zionite searching for "candidates" 1636 | -10/Subcaves | Visited Clippyterm 1639 | -10/Subcaves | Learned Factory stockpile data 1710 | -10/Subcaves | Shifting Twisted Machinery released Sub. Optics 1927 | -10/Subcaves | A Subdweller sparked back to life 1927 | -10/Subcaves | A Subdweller sparked back to life 1927 | -10/Subcaves | A Subdweller sparked back to life 1946 | -10/Subcaves | Core integrity fell below 20% 1955 | -10/Subcaves | Destroyed by RJ-YOV(R) with Subdweller Machine Gun Last Messages --------------- Sub. Optics falls loose from the Twisted Machinery. 01837_ Acquired 4 matter. 01927_ RJ-YOV(R) creaks and sparks as it begins to move. 01927_ 71-85Z(R) creaks and sparks as it begins to move. 01927_ 88-98H(R) creaks and sparks as it begins to move. 01927_ Autobeam destroyed. 01934_ 71-85Z(R) affixes Scrap Shield Fragment to Scrap Shield. 01935_ Sub. Monowheel destroyed. 01939_ Sub. Machine Gun destroyed. 01942_ 71-85Z(R) affixes Scrap Shield Fragment to Scrap Shield. 01946_ Com. Wheel destroyed. 01948_ Broken Sub. Monowheel destroyed. 01949_ 88-98H(R) destroyed. 01953_ 71-85Z(R) destroyed. Map ----- +----------------------------------------------------+ | ?????????????????????????????????????????????????? | | ?????????????????????????????????????????????????? | | ?????????????????????????????????????????????????? | | ?????????????????????????????????????????????????? | | ?????????????????????????????????????????????????? | | ?????????????????????????????????????????????????? | | ?????????????????????????????????????????????????? | | ?????????????????????????????????????????????????? | | ?????????????????????????????????????????????????? | | ?????????????????????????????????????????????????? | | ?????????????????????????????????????????????????? | | ?????????????????????????????????????????????????? | | #??????????????????????????????????????#####?????? | | "??????????????????????????????????????# #?????? | | ##????########??###????##??####???????# #?????? | | #???## ## ##?# ????#"### "######### #?????# | | # "#### #?# ###?#""" """## ##?#### | | # ## # ##?# ### """" ### # | | " " #??# "### "" | | #####" "### ####"" | | ### """" "# # ##??####### # # # | | # ## """ " #?????????######## | | # # "" # ###" ###??????????????# | | # ### ## ######## " "#??????????????# | | # ##### ##### #""## ###" |"##?????????????# | | # # #???## """"u]%@&# """#?????????????# | | ##????# """ #!=&%<# ###?????????????# | | # ^ #### #?????# ""##< [&! #??????????????## | | #^ ###?###?????##" ##R # #???????????????# | | # ^###????##?# ###< < # #???????????????# | | ## ^ # #### # ?###### ##???????????????# | | ?#^ ^ ??????# ????????????????# | | ?##^ " "?????? & #???????????????## | | #### ^ # ### "???""?????? " ##????????????????# | | ### ^ #####??????? ??????? " ?????????????????? | | ^###????????????????? #????????????????? | | ""???????????? #????????????????? | | ""??????????? ##????????????????? | | ## #### # ""?????????? ?/#?????????????????? | | ####???####### ""?????????? ? ??????????????????? | | #???????????????#?????????? ? ??????????????????? | | ????????????????????????????????????????????? | | #??????????????????????????????????????????? | | ##??????????????????????????????????????????? | | ###???????????????????????????????????????????? | | ####?????????????????????????????????????????????? | | ?????????????????????????????????????????????????? | | ?????????????????????????????????????????????????? | | ?????????????????????????????????????????????????? | | ????????????????????????????????????????????????? | +----------------------------------------------------+ Best States ------------- Heat Dissipation 25 Energy Generation 10 Energy Capacity 250 Matter Stores 300 Matter Capacity 300 Sight Range 16 Terrain Scan Density 10 Resistance: KI 35 Resistance: TH 35 Resistance: EX 35 Resistance: EM 35 Resistance: I 35 Resistance: S 35 Resistance: P 35 Evasion (%) 55 Targeting Accuracy 5 Offensive Hacking 20 Item Schematics ----------------- None Robot Schematics ------------------ None Fabricated ------------ Nothing Repaired ---------- Nothing Studied --------- None Alien Tech Used ----------------- None Achievements -------------- None Challenges ------------ None Game ------ Seed BoreShadingJammer Manual? 0 Play Time 00:18:49 Cumulative 98.0 hours Start 2025.11.17 @ 08:35:56 End 2025.11.17 @ 08:52:29 Sessions 1 Manual Loads 0 Difficulty Explorer Special Mode None Game No. 106 Rogue 0 Adventurer 0 Explorer 106 Win Type - Total 0 Types 0/0/0/0/0/0/0/0/0/0 Lore% 60 Gallery% 59 Achievement% 46 Wizard Run 0 Options --------- Layout 1 ASCII 0 Keyboard 0 Movement Mouse Keybinds 0 Fullscreen 1 Font 24/Smallcaps Map View 50x35 Zoom Use 0% Tactical HUD 1 Map Filters NONE Filters NONE Steam 1 RUN: ceddad11-f78e-4865-8442-9997cab36315